fUST/lending_fUST_20250614
["ID","MTS","AMOUNT","RATE_DAILY","PERIOD"]
[365759112,1749885035726,-460.0,0.00021369,4]
[365759113,1749885035736,-460.0,0.00021369,4]
[365759114,1749885035745,-460.0,0.00021369,4]
[365759115,1749885035755,-460.0,0.00021369,4]
[365759116,1749885035764,-460.0,0.00021369,4]
[365759117,1749885035774,-460.0,0.00021369,4]
[365759118,1749885035784,-250.55603492,0.00021369,4]
[365759119,1749885035794,-460.0,0.00021369,4]
[365759120,1749885035804,-288.06885706,0.00021369,4]
[365759121,1749885035814,-460.0,0.00021369,4]
[365759122,1749885035823,-1088.08,0.00021369,4]
[365759123,1749885035832,-460.0,0.00021369,2]
[365759124,1749885035842,-410.0,0.00021369,4]
[365759125,1749885035851,-460.0,0.00021369,4]
[365759126,1749885035860,-460.0,0.00021369,4]
[365759127,1749885035870,-460.0,0.00021369,4]
[365759128,1749885035879,-400.0,0.00021369,4]
[365759129,1749885035888,-460.0,0.00021369,4]
[365759130,1749885035897,-460.0,0.00021369,4]
[365759131,1749885035907,-402.9633694,0.00021369,4]
[365759132,1749885035916,-460.0,0.00021369,4]
[365759133,1749885035926,-460.0,0.00021369,4]
[365759134,1749885035935,-677.95,0.00021369,4]
[365759135,1749885035944,-420.0,0.00021369,4]
[365759136,1749885035954,-460.0,0.00021369,4]
[365759137,1749885035964,-310.18447392,0.00021369,4]
[365759138,1749885035974,-460.0,0.00021369,4]
[365759139,1749885035983,-460.0,0.00021369,4]
[365759140,1749885035994,-218.74280657,0.00021369,4]
[365759141,1749885036004,-596.00569016,0.00021369,4]
[365759142,1749885036013,-460.0,0.00021369,4]
[365759143,1749885036024,-4167.92,0.00021369,4]
[365759144,1749885036034,-266.19380777,0.00021369,4]
[365759145,1749885036044,-268.3652595,0.00021369,4]
[365759146,1749885036054,-460.0,0.00021369,4]
[365759147,1749885036063,-460.0,0.00021369,4]
[365759148,1749885036073,-468.93,0.00021369,4]
[365759149,1749885036082,-460.0,0.00021369,4]
[365759150,1749885036092,-1008.27,0.00021369,4]
[365759151,1749885036101,-952.36,0.00021369,4]
[365759152,1749885036111,-460.0,0.00021369,4]
[365759153,1749885036127,-460.0,0.00021369,4]
[365759154,1749885036136,-460.0,0.00021369,4]
[365759155,1749885036146,-460.0,0.00021369,4]
[365759156,1749885036156,-460.0,0.00021369,4]
[365759157,1749885036165,-460.0,0.00021369,4]
[365759158,1749885036175,-460.0,0.00021369,4]
[365759159,1749885036184,-460.0,0.00021369,4]
[365759160,1749885036194,-460.0,0.00021369,4]
[365759161,1749885036203,-460.0,0.00021369,4]
[365759162,1749885036216,-460.0,0.00021369,4]
[365759163,1749885036225,-1145.37,0.00021369,4]
[365759164,1749885036234,-632.5,0.00021369,4]
[365759165,1749885036245,-921.24,0.00021369,4]
[365759166,1749885036258,-437.96690374,0.00021369,4]
[365759167,1749885036267,-460.0,0.00021369,4]
[365759168,1749885036277,-600.97839894,0.00021369,4]
[365759169,1749885036289,-1238.16,0.00021369,4]
[365759170,1749885036299,-460.0,0.00021369,4]
[365759171,1749885036309,-1435.76,0.00021369,4]
[365759172,1749885036320,-460.0,0.00021369,4]
[365759173,1749885036330,-460.0,0.00021369,4]
[365759174,1749885036436,-460.0,0.00021369,4]
[365759175,1749885036446,-201.42,0.00021369,4]
[365759176,1749885036456,-460.0,0.00021369,4]
[365759177,1749885036465,-460.0,0.00021369,4]
[365759178,1749885036474,-463.93,0.00021369,4]
[365759179,1749885036483,-598.44,0.00021369,4]
[365759180,1749885036493,-460.0,0.00021369,4]
[365759181,1749885036502,-540.0,0.00021369,4]
[365759182,1749885036513,-406.18303345,0.00021369,4]
[365759183,1749885036522,-460.0,0.00021369,4]
[365759184,1749885036532,-460.0,0.00021369,4]
[365759185,1749885036542,-405.79121072,0.00021369,4]
[365759186,1749885036560,-54.20878928,0.00021369,4]
[365759187,1749885036569,-460.0,0.00021369,4]
[365759188,1749885036579,-440.0,0.00021369,4]
[365759189,1749885036590,-503.92208925,0.00021373,2]
[365759190,1749885036600,-500.0,0.00021373,2]
[365759191,1749885036610,-500.0,0.00021373,2]
[365759192,1749885036620,-2925.81737565,0.000214,2]
[365759193,1749885036631,-6915.48923717,0.000214,2]
[365759194,1749885036643,-5933.24186811,0.000214,2]
[365759242,1749885038457,-360.0,0.00021095,4]
[365759244,1749885038467,-17251.3333528,0.000214,2]
[365759247,1749885038478,-14445.64091018,0.000214,2]
[365759249,1749885038490,-30462.83709047,0.000214,2]
[365759251,1749885038502,-1419.58977162,0.000214,2]
[365759253,1749885038514,-652.66070144,0.000214,2]
[365759255,1749885038530,-805.6440047,0.000214,2]
[365759257,1749885038542,-22140.09899553,0.000214,2]
[365759259,1749885038551,-500.0,0.000214,2]
[365759262,1749885038562,-3795.85,0.000214,2]
[365759264,1749885038571,-500.0,0.00021506,2]
[365759265,1749885038580,-500.0,0.00021506,2]
[365759269,1749885038590,-500.0,0.00021541,2]
[365759270,1749885038599,-500.0,0.00021541,2]
[365759272,1749885038609,-500.0,0.00021583,2]
[365759274,1749885038618,-500.0,0.00021613,2]
[365759276,1749885038627,-360.0,0.00021643,4]
[365759278,1749885038636,-320.0,0.00021643,4]
[365759280,1749885038646,-539.76110086,0.00021643,4]
[365759282,1749885038656,-460.0,0.00021643,4]
[365759284,1749885038666,-502.15,0.00021643,4]
[365759286,1749885038675,-460.0,0.00021643,4]
[365759287,1749885038685,-445.63916208,0.00021643,4]
[365759288,1749885038695,-460.0,0.00021643,4]
[365759289,1749885038705,-460.0,0.00021643,4]
[365759291,1749885038715,-460.0,0.00021643,4]
[365759292,1749885038725,-412.63281644,0.00021643,4]
[365759293,1749885038734,-460.0,0.00021643,4]
[365759295,1749885038743,-460.0,0.00021643,4]
[365759297,1749885038753,-521.34835705,0.00021643,4]
[365759299,1749885038762,-460.0,0.00021643,4]
[365759301,1749885038771,-460.0,0.00021643,4]
[365759303,1749885038780,-460.0,0.00021643,4]
[365759305,1749885038789,-460.0,0.00021643,4]
[365759307,1749885038799,-460.0,0.00021643,4]
[365759309,1749885038808,-535.7082571,0.00021643,4]
[365759310,1749885038817,-460.0,0.00021643,4]
[365759312,1749885038826,-460.0,0.00021643,4]
[365759314,1749885038835,-460.0,0.00021643,4]
[365759316,1749885038844,-460.0,0.00021643,4]
[365759318,1749885038853,-460.0,0.00021643,4]
[365759320,1749885038862,-460.0,0.00021643,4]
[365759322,1749885038871,-460.0,0.00021643,4]
[365759324,1749885038880,-460.0,0.00021643,4]
[365759326,1749885038890,-460.0,0.00021643,4]
[365759328,1749885038899,-1088.08,0.00021643,4]
[365759330,1749885038910,-460.0,0.00021643,2]
[365759332,1749885038921,-252.49848653,0.00021643,4]
[365759334,1749885038932,-460.0,0.00021643,4]
[365759336,1749885038941,-460.0,0.00021643,4]
[365759338,1749885038950,-278.38,0.00021643,4]
[365759340,1749885038959,-460.0,0.00021643,4]
[365759342,1749885038969,-460.0,0.00021643,4]
[365759344,1749885038978,-460.0,0.00021643,4]
[365759346,1749885038987,-677.95,0.00021643,4]
[365759348,1749885038997,-460.0,0.00021643,4]
[365759350,1749885039006,-460.0,0.00021643,4]
[365759352,1749885039015,-460.0,0.00021643,4]
[365759354,1749885039025,-4167.92,0.00021643,4]
[365759356,1749885039034,-468.93,0.00021643,4]
[365759358,1749885039043,-460.0,0.00021643,4]
[365759360,1749885039053,-460.0,0.00021643,4]
[365759362,1749885039062,-1008.27,0.00021643,4]
[365759364,1749885039071,-952.36,0.00021643,4]
[365759366,1749885039080,-460.0,0.00021643,4]
[365759368,1749885039089,-460.0,0.00021643,4]
[365759369,1749885039099,-460.0,0.00021643,4]
[365759370,1749885039107,-460.0,0.00021643,4]
[365759371,1749885039116,-460.0,0.00021643,4]
[365759372,1749885039126,-460.0,0.00021643,4]
[365759373,1749885039135,-460.0,0.00021643,4]
[365759374,1749885039144,-460.0,0.00021643,4]
[365759375,1749885039154,-460.0,0.00021643,4]
[365759376,1749885039163,-460.0,0.00021643,4]
[365759377,1749885039172,-460.0,0.00021643,4]
[365759378,1749885039181,-1145.37,0.00021643,4]
[365759379,1749885039191,-632.5,0.00021643,4]
[365759380,1749885039200,-921.24,0.00021643,4]
[365759381,1749885039214,-1238.16,0.00021643,4]
[365759382,1749885039224,-460.0,0.00021643,4]
[365759383,1749885039233,-1435.76,0.00021643,4]
[365759384,1749885039242,-460.0,0.00021643,4]
[365759385,1749885039252,-460.0,0.00021643,4]
[365759386,1749885039262,-460.0,0.00021643,4]
[365759387,1749885039271,-460.0,0.00021643,4]
[365759388,1749885039281,-463.93,0.00021643,4]
[365759389,1749885039290,-598.44,0.00021643,4]
[365759390,1749885039299,-460.0,0.00021643,4]
[365759391,1749885039309,-460.0,0.00021643,4]
[365759392,1749885039320,-460.0,0.00021643,4]
[365759393,1749885039329,-460.0,0.00021643,4]
[365759394,1749885039339,-210.75337449,0.00021718,2]
[365759395,1749885039348,-876.95312407,0.00021762,2]
[365759396,1749885039357,-1796.09681834,0.000219,6]
[365759397,1749885039367,-368.19372563,0.00021905,2]
[365759398,1749885039376,-501.26660304,0.00021905,2]
[365759399,1749885039386,-460.0,0.00021917,4]
[365759400,1749885039395,-502.15,0.00021917,4]
[365759401,1749885039405,-280.4784662,0.00021917,4]
[365759402,1749885039415,-460.0,0.00021917,4]
[365759403,1749885039424,-460.0,0.00021917,4]
[365759404,1749885039434,-146.8447449,0.00021917,4]
[365759405,1749885039447,-313.1552551,0.00021917,4]
[365759406,1749885039457,-89.14115124,0.00021917,4]
[365759407,1749885039468,-401.15917129,0.00021917,4]
[365759408,1749885039480,-81.89376961,0.00021917,4]
[365759409,1749885039490,-580.0,0.00021917,4]
[365759410,1749885039499,-334.09604239,0.00021917,4]
[365759411,1749885039519,-125.90395761,0.00021917,4]
[365759412,1749885039531,-160.0,0.00021917,4]
[365759413,1749885039540,-460.0,0.00021917,4]
[365759414,1749885039551,-460.0,0.00021917,4]
[365759415,1749885039561,-323.64054586,0.00021917,4]
[365759416,1749885039570,-469.54096578,0.00021917,4]
[365759417,1749885039579,-460.0,0.00021917,4]
[365759418,1749885039589,-460.0,0.00021917,4]
[365759419,1749885039599,-460.0,0.00021917,4]
[365759420,1749885039609,-460.0,0.00021917,4]
[365759421,1749885039618,-460.0,0.00021917,4]
[365759422,1749885039629,-460.0,0.00021917,4]
[365759423,1749885039642,-460.0,0.00021917,4]
[365759424,1749885039651,-551.83243371,0.00021917,4]
[365759425,1749885039660,-1088.08,0.00021917,4]
[365759426,1749885039670,-460.0,0.00021917,2]
[365759427,1749885039679,-460.0,0.00021917,4]
[365759428,1749885039690,-460.0,0.00021917,4]
[365759429,1749885039699,-460.0,0.00021917,4]
[365759430,1749885039709,-460.0,0.00021917,4]
[365759431,1749885039718,-460.0,0.00021917,4]
[365759432,1749885039729,-677.95,0.00021917,4]
[365759433,1749885039738,-460.0,0.00021917,4]
[365759434,1749885039748,-460.0,0.00021917,4]
[365759435,1749885039758,-460.0,0.00021917,4]
[365759436,1749885039769,-4167.92,0.00021917,4]
[365759437,1749885039778,-468.93,0.00021917,4]
[365759438,1749885039788,-460.0,0.00021917,4]
[365759439,1749885039797,-1008.27,0.00021917,4]
[365759440,1749885039807,-952.36,0.00021917,4]
[365759441,1749885039816,-460.0,0.00021917,4]
[365759442,1749885039826,-347.19683907,0.00021917,4]
[365759443,1749885039836,-460.0,0.00021917,4]
[365759444,1749885039846,-226.94361989,0.00021917,4]
[365759445,1749885039856,-460.0,0.00021917,4]
[365759446,1749885039866,-460.0,0.00021917,4]
[365759447,1749885039876,-460.0,0.00021917,4]
[365759448,1749885039886,-314.70235338,0.00021917,4]
[365759449,1749885039895,-460.0,0.00021917,4]
[365759450,1749885039904,-460.0,0.00021917,4]
[365759451,1749885039914,-460.0,0.00021917,4]
[365759452,1749885040010,-1145.37,0.00021917,4]
[365759453,1749885040020,-632.5,0.00021917,4]
[365759454,1749885040031,-921.24,0.00021917,4]
[365759455,1749885040041,-1238.16,0.00021917,4]
[365759456,1749885040051,-460.0,0.00021917,4]
[365759457,1749885040060,-1435.76,0.00021917,4]
[365759458,1749885040070,-460.0,0.00021917,4]
[365759459,1749885040079,-460.0,0.00021917,4]
[365759460,1749885040089,-200.0,0.00021917,4]
[365759461,1749885040099,-460.0,0.00021917,4]
[365759462,1749885040109,-463.93,0.00021917,4]
[365759463,1749885040118,-598.44,0.00021917,4]
[365759464,1749885040128,-584.60861864,0.00021917,4]
[365759465,1749885040137,-460.0,0.00021917,4]
[365759466,1749885040147,-460.0,0.00021917,4]
[365759467,1749885040156,-500.0,0.00021921,2]
[365759468,1749885040165,-381.98165968,0.00021973,2]
[365759469,1749885040175,-502.2212127,0.00021973,2]
[365759470,1749885040185,-505.64092817,0.00021973,2]
[365759472,1749885040194,-503.42492212,0.00021973,2]
[365759474,1749885040207,-122595.95,0.00022,7]
[365759476,1749885040217,-845.10789306,0.00022,7]
[365759479,1749885040228,-167.0,0.00022,2]
[365759481,1749885040237,-12533.30537164,0.00022,7]
[365759482,1749885040247,-213.28201367,0.00022,7]
[365759483,1749885040256,-168.0,0.00022,2]
[365759484,1749885040266,-1796.09681822,0.00022003,6]
[365759485,1749885040276,-317.0,0.00022042,2]
[365759486,1749885040287,-500.0,0.00022081,2]
[365759487,1749885040296,-151.0,0.00022081,2]
[365759488,1749885040306,-151.0,0.00022081,2]
[365759489,1749885040315,-151.0,0.00022081,2]
[365759491,1749885040325,-1796.09681822,0.00022107,6]
[365759493,1749885040335,-500.0,0.00022108,2]
[365759495,1749885040344,-151.0,0.00022108,2]
[365759497,1749885040354,-151.0,0.00022108,2]
[365759498,1749885040364,-835.41710878,0.00022113,2]
[365759500,1749885040374,-160.0,0.00022113,2]
[365759502,1749885040384,-213.28201367,0.00022113,2]
[365759504,1749885040395,-424.40141186,0.00022113,2]
[365759506,1749885040404,-845.10789306,0.00022113,2]
[365759508,1749885040415,-160.0,0.00022113,2]
[365759510,1749885040425,-160.0,0.00022113,2]
[365759511,1749885040434,-229.82479369,0.00022113,2]
[365759513,1749885040444,-160.0,0.00022113,2]
[365759516,1749885040454,-160.0,0.00022113,2]
[365759518,1749885040464,-160.0,0.00022113,2]
[365759520,1749885040474,-160.0,0.00022113,2]
[365759522,1749885040484,-160.0,0.00022113,2]
[365759524,1749885040494,-12533.30537164,0.00022113,2]
[365759526,1749885040504,-500.0,0.00022136,2]
[365759528,1749885040513,-151.0,0.00022136,2]
[365759530,1749885040523,-500.0,0.00022161,2]
[365759532,1749885040533,-500.0,0.00022163,2]
[365759534,1749885040544,-151.0,0.00022163,2]
[365759536,1749885040554,-500.0,0.00022191,2]
[365759538,1749885040564,-245.0,0.00022191,2]
[365759540,1749885040573,-502.15,0.00022191,4]
[365759542,1749885040582,-568.81342715,0.00022191,4]
[365759544,1749885040592,-248.65377666,0.00022191,4]
[365759546,1749885040602,-460.0,0.00022191,4]
[365759548,1749885040612,-378.73439878,0.00022191,4]
[365759550,1749885040621,-460.0,0.00022191,4]
[365759552,1749885040633,-460.0,0.00022191,4]
[365759554,1749885040643,-460.0,0.00022191,4]
[365759556,1749885040653,-460.0,0.00022191,4]
[365759558,1749885040662,-1088.08,0.00022191,4]
[365759560,1749885040672,-460.0,0.00022191,2]
[365759562,1749885040682,-460.0,0.00022191,4]
[365759564,1749885040691,-460.0,0.00022191,4]
[365759566,1749885040701,-460.0,0.00022191,4]
[365759568,1749885040710,-677.95,0.00022191,4]
[365759570,1749885040719,-460.0,0.00022191,4]
[365759572,1749885040730,-460.0,0.00022191,4]
[365759575,1749885040739,-4167.92,0.00022191,4]
[365759577,1749885040749,-468.93,0.00022191,4]
[365759579,1749885040758,-460.0,0.00022191,4]
[365759581,1749885040768,-1008.27,0.00022191,4]
[365759583,1749885040777,-952.36,0.00022191,4]
[365759585,1749885040786,-460.0,0.00022191,4]
[365759587,1749885040796,-460.0,0.00022191,4]
[365759589,1749885040805,-460.0,0.00022191,4]
[365759591,1749885040816,-460.0,0.00022191,4]
[365759593,1749885040825,-1145.37,0.00022191,4]
[365759595,1749885040835,-632.5,0.00022191,4]
[365759597,1749885040844,-921.24,0.00022191,4]
[365759599,1749885040853,-1238.16,0.00022191,4]
[365759601,1749885040863,-460.0,0.00022191,4]
[365759603,1749885040872,-1435.76,0.00022191,4]
[365759605,1749885040881,-460.0,0.00022191,4]
[365759607,1749885040895,-460.0,0.00022191,4]
[365759610,1749885040909,-463.93,0.00022191,4]
[365759612,1749885040924,-598.44,0.00022191,4]
[365759615,1749885040936,-460.0,0.00022191,4]
[365759617,1749885040949,-460.0,0.00022191,4]
[365759620,1749885040962,-87581.37,0.000222,2]
[365759622,1749885040976,-1796.09681822,0.0002221,6]
[365759625,1749885040990,-500.0,0.00022218,2]
[365759627,1749885041003,-500.0,0.00022245,2]
[365759629,1749885041018,-876.95312407,0.00022255,2]
[365759632,1749885041032,-500.0,0.00022273,2]
[365759634,1749885041044,-1056.1,0.000223,7]
[365759637,1749885041056,-500.0,0.000223,2]
[365759639,1749885041069,-1796.09681822,0.00022314,7]
[365759641,1749885041081,-500.0,0.00022328,2]
[365759644,1749885041095,-500.0,0.00022355,2]
[365759646,1749885041108,-500.0,0.00022382,2]
[365759649,1749885041120,-415.6842856,0.0002241,2]
[365759651,1749885041130,-1796.09681822,0.00022417,7]
[365759653,1749885041143,-502.15,0.00022465,4]
[365759655,1749885041155,-460.0,0.00022465,4]
[365759658,1749885041167,-460.0,0.00022465,4]
[365759660,1749885041181,-460.0,0.00022465,4]
[365759662,1749885041194,-460.0,0.00022465,4]
[365759665,1749885041211,-460.0,0.00022465,4]
[365759667,1749885041225,-1088.08,0.00022465,4]
[365759670,1749885041240,-460.0,0.00022465,2]
[365759672,1749885041251,-460.0,0.00022465,4]
[365759674,1749885041262,-460.0,0.00022465,4]
[365759676,1749885041273,-460.0,0.00022465,4]
[365759679,1749885041286,-677.95,0.00022465,4]
[365759681,1749885041301,-460.0,0.00022465,4]
[365759684,1749885041314,-460.0,0.00022465,4]
[365759686,1749885041325,-4167.92,0.00022465,4]
[365759688,1749885041337,-468.93,0.00022465,4]
[365759690,1749885041349,-460.0,0.00022465,4]
[365759693,1749885041360,-1008.27,0.00022465,4]
[365759695,1749885041371,-952.36,0.00022465,4]
[365759697,1749885041383,-460.0,0.00022465,4]
[365759699,1749885041394,-460.0,0.00022465,4]
[365759702,1749885041407,-460.0,0.00022465,4]
[365759704,1749885041418,-1145.37,0.00022465,4]
[365759706,1749885041429,-632.5,0.00022465,4]
[365759708,1749885041441,-921.24,0.00022465,4]
[365759710,1749885041453,-1238.16,0.00022465,4]
[365759712,1749885041465,-460.0,0.00022465,4]
[365759714,1749885041476,-1435.76,0.00022465,4]
[365759716,1749885041488,-460.0,0.00022465,4]
[365759718,1749885041499,-460.0,0.00022465,4]
[365759719,1749885041511,-463.93,0.00022465,4]
[365759720,1749885041523,-598.44,0.00022465,4]
[365759721,1749885041534,-460.0,0.00022465,4]
[365759723,1749885041546,-592.30420258,0.00022465,4]
[365759724,1749885041557,-500.0,0.00022466,2]
[365759725,1749885041570,-500.0,0.00022466,2]
[365759726,1749885041582,-500.0,0.00022466,2]
[365759727,1749885041593,-500.0,0.00022466,2]
[365759728,1749885041605,-500.0,0.00022466,2]
[365759729,1749885041616,-650.0,0.00022466,2]
[365759730,1749885041629,-500.0,0.0002247,2]
[365759731,1749885041641,-151.0,0.000225,10]
[365759732,1749885041652,-3795.85,0.000225,7]
[365759733,1749885041664,-1796.09681822,0.00022521,7]
[365759734,1749885041675,-207.4,0.0002262,2]
[365759735,1749885041686,-1750.456,0.0002262,2]
[365759737,1749885041698,-1796.09681822,0.00022624,7]
[365759738,1749885041709,-788.0,0.00022625,2]
[365759739,1749885041721,-151.0,0.000227,10]
[365759740,1749885041732,-1796.09681822,0.00022728,7]
[365759741,1749885041743,-160.0,0.00022735,2]
[365759742,1749885041754,-502.15,0.00022739,4]
[365759743,1749885041765,-317.59794586,0.00022739,4]
[365759744,1749885041777,-460.0,0.00022739,4]
[365759745,1749885041788,-460.0,0.00022739,4]
[365759746,1749885041800,-460.0,0.00022739,4]
[365759747,1749885041812,-1088.08,0.00022739,4]
[365759748,1749885041822,-460.0,0.00022739,2]
[365759749,1749885041831,-460.0,0.00022739,4]
[365759750,1749885041842,-460.0,0.00022739,4]
[365759751,1749885041852,-460.0,0.00022739,4]
[365759752,1749885041862,-677.95,0.00022739,4]
[365759753,1749885041871,-460.0,0.00022739,4]
[365759754,1749885041881,-460.0,0.00022739,4]
[365759755,1749885041891,-4167.92,0.00022739,4]
[365759756,1749885041900,-468.93,0.00022739,4]
[365759757,1749885041910,-460.0,0.00022739,4]
[365759758,1749885041920,-1008.27,0.00022739,4]
[365759759,1749885041929,-952.36,0.00022739,4]
[365759760,1749885041939,-460.0,0.00022739,4]
[365759761,1749885041949,-460.0,0.00022739,4]
[365759762,1749885042098,-460.0,0.00022739,4]
[365759763,1749885042115,-1145.37,0.00022739,4]
[365759764,1749885042124,-632.5,0.00022739,4]
[365759765,1749885042133,-921.24,0.00022739,4]
[365759766,1749885042143,-1238.16,0.00022739,4]
[365759767,1749885042152,-460.0,0.00022739,4]
[365759768,1749885042161,-1435.76,0.00022739,4]
[365759769,1749885042171,-379.58033034,0.00022739,4]
[365759770,1749885042180,-460.0,0.00022739,4]
[365759771,1749885042190,-463.93,0.00022739,4]
[365759772,1749885042199,-598.44,0.00022739,4]
[365759773,1749885042212,-460.0,0.00022739,4]
[365759774,1749885042221,-876.95312407,0.00022749,2]
[365759775,1749885042231,-788.0,0.00022805,2]
[365759776,1749885042241,-1796.09681822,0.00022831,8]
[365759777,1749885042250,-151.0,0.000229,6]
[365759778,1749885042260,-1796.09681822,0.00022934,8]
[365759779,1749885042269,-420.0,0.00022941,2]
[365759780,1749885042279,-337.0,0.00022942,2]
[365759781,1749885042290,-420.0,0.00022942,2]
[365759782,1749885042300,-500.0,0.00022973,2]
[365759783,1749885042310,-501.19077422,0.00022973,2]
[365759784,1749885042319,-152.84253909,0.00022973,2]
[365759785,1749885042329,-509.52386993,0.00022973,2]
[365759786,1749885042338,-500.0,0.00022973,2]
[365759787,1749885042347,-500.0,0.00022973,2]
[365759788,1749885042356,-500.0,0.00022973,2]
[365759789,1749885042366,-500.0,0.00022973,2]
[365759790,1749885042376,-500.0,0.00022973,2]
[365759791,1749885042385,-500.76973816,0.00022973,2]
[365759792,1749885042394,-500.0,0.00022973,2]
[365759793,1749885042404,-600.0,0.00022973,2]
[365759794,1749885042414,-500.0,0.00022973,2]
[365759795,1749885042423,-242.91572388,0.00022973,2]
[365759796,1749885042432,-500.0,0.00022973,2]
[365759797,1749885042441,-501.54253158,0.00022973,2]
[365759798,1749885042450,-500.0,0.00022973,2]
[365759799,1749885042460,-500.0,0.00022973,2]
[365759800,1749885042469,-3668.06,0.00022986,2]
[365759801,1749885042480,-1131.7012002,0.00023,10]
[365759802,1749885042490,-13587.0,0.00023,5]
[365759803,1749885042499,-3000.0,0.00023,2]
[365759804,1749885042510,-122595.95,0.00023,7]
[365759805,1749885042520,-3000.0,0.0002301,2]
[365759806,1749885042529,-502.15,0.00023013,4]
[365759807,1749885042539,-269.31706771,0.00023013,4]
[365759808,1749885042549,-460.0,0.00023013,4]
[365759809,1749885042558,-1088.08,0.00023013,4]
[365759810,1749885042567,-540.53370918,0.00023013,2]
[365759811,1749885042576,-460.0,0.00023013,4]
[365759812,1749885042587,-460.0,0.00023013,4]
[365759813,1749885042596,-460.0,0.00023013,4]
[365759814,1749885042606,-677.95,0.00023013,4]
[365759815,1749885042616,-460.0,0.00023013,4]
[365759816,1749885042625,-460.0,0.00023013,4]
[365759817,1749885042634,-4167.92,0.00023013,4]
[365759818,1749885042643,-468.93,0.00023013,4]
[365759819,1749885042652,-177.86250209,0.00023013,4]
[365759820,1749885042661,-1008.27,0.00023013,4]
[365759821,1749885042671,-952.36,0.00023013,4]
[365759822,1749885042680,-430.0,0.00023013,4]
[365759823,1749885042690,-460.0,0.00023013,4]
[365759824,1749885042700,-460.0,0.00023013,4]
[365759825,1749885042709,-1145.37,0.00023013,4]
[365759826,1749885042718,-632.5,0.00023013,4]
[365759827,1749885042727,-921.24,0.00023013,4]
[365759828,1749885042738,-1238.16,0.00023013,4]
[365759829,1749885042748,-460.0,0.00023013,4]
[365759830,1749885042757,-1435.76,0.00023013,4]
[365759831,1749885042767,-463.93,0.00023013,4]
[365759832,1749885042776,-460.0,0.00023013,4]
[365759833,1749885042785,-598.44,0.00023013,4]
[365759834,1749885042795,-460.0,0.00023013,4]
[365759835,1749885042805,-168.0,0.00023014,7]
[365759836,1749885042814,-5966.593199,0.0002302,2]
[365759837,1749885042823,-1796.09681822,0.00023038,8]
[365759838,1749885042833,-839.8466164,0.00023041,2]
[365759839,1749885042842,-165.57654101,0.00023041,2]
[365759840,1749885042851,-5000.0,0.00023082,3]
[365759841,1749885042860,-325.506393,0.000231,7]
[365759842,1749885042870,-555.871078,0.000231,7]
[365759843,1749885042879,-555.871078,0.000231,7]
[365759844,1749885042890,-151.0,0.000231,6]
[365759845,1749885042899,-4000.0,0.00023128,3]
[365759846,1749885042909,-424.40141186,0.0002313,3]
[365759847,1749885042919,-835.41710878,0.0002313,3]
[365759848,1749885042928,-845.10789306,0.0002313,3]
[365759850,1749885042937,-229.82479369,0.0002313,3]